[Event "Titled Tuesday Blitz August 1 Late 2023"]
[White "Martinez Alcantara, Jose Eduardo"]
[Black "Domingo Nunez, Ruben"]
[WhiteFideId "3805662"]
[BlackFideId "22245570"]
[WhiteElo "2986"]
[BlackElo "2566"]
[Result "1-0"]
[Round "2"]
[TimeControl "180+1"]
[Date "2023.08.01"]
[WhiteClock "0:00:10"]
[BlackClock "0:00:14"]
[Board "9"]

1. e4 {[%clk 0:03:00]}  g6 {[%clk 0:02:57]} 2. d4 {[%clk 0:03:00]}  Bg7 {[%clk 0:02:58]} 3. c3 {[%clk 0:03:01]}  c6 {[%clk 0:02:58]} 4. Bd3 {[%clk 0:03:00]}  d5 {[%clk 0:02:59]} 5. Nd2 {[%clk 0:03:00]}  dxe4 {[%clk 0:02:59]} 6. Nxe4 {[%clk 0:03:01]}  Nf6 {[%clk 0:03:00]} 7. Ng3 {[%clk 0:03:01]}  h5 {[%clk 0:03:00]} 8. h3 {[%clk 0:02:56]}  h4 {[%clk 0:03:00]} 9. N3e2 {[%clk 0:02:56]}  Nbd7 {[%clk 0:02:54]} 10. Nf3 {[%clk 0:02:56]}  c5 {[%clk 0:02:54]} 11. O-O {[%clk 0:02:55]}  cxd4 {[%clk 0:02:53]} 12. cxd4 {[%clk 0:02:56]}  Nf8 {[%clk 0:02:51]} 13. Bg5 {[%clk 0:02:47]}  Ne6 {[%clk 0:02:52]} 14. Bxh4 {[%clk 0:02:45]}  Qb6 {[%clk 0:02:52]} 15. Qb3 {[%clk 0:02:31]}  Qxb3 {[%clk 0:02:44]} 16. axb3 {[%clk 0:02:31]}  Nd5 {[%clk 0:02:27]} 17. Bg3 {[%clk 0:02:28]}  Bd7 {[%clk 0:02:19]} 18. Bc4 {[%clk 0:02:26]}  Bc6 {[%clk 0:02:12]} 19. Ne5 {[%clk 0:02:27]}  Bxe5 {[%clk 0:01:56]} 20. Bxe5 {[%clk 0:02:28]}  O-O {[%clk 0:01:43]} 21. Nc3 {[%clk 0:02:14]}  Rfd8 {[%clk 0:01:42]} 22. Rad1 {[%clk 0:02:13]}  Rd7 {[%clk 0:01:24]} 23. Rfe1 {[%clk 0:01:59]}  Rad8 {[%clk 0:01:23]} 24. Ne4 {[%clk 0:01:53]}  Ndf4 {[%clk 0:01:09]} 25. f3 {[%clk 0:01:26]}  Kf8 {[%clk 0:00:47]} 26. Ng5 {[%clk 0:00:55]}  Bd5 {[%clk 0:00:23]} 27. Nxe6+ {[%clk 0:00:55]}  Nxe6 {[%clk 0:00:20]} 28. Bb5 {[%clk 0:00:55]}  Bc6 {[%clk 0:00:20]} 29. Bc4 {[%clk 0:00:19]}  Nxd4 {[%clk 0:00:20]} 30. Rc1 {[%clk 0:00:19]}  Nf5 {[%clk 0:00:15]} 31. Bc3 {[%clk 0:00:16]}  Bd5 {[%clk 0:00:14]} 32. Bb5 {[%clk 0:00:16]}  Bc6 {[%clk 0:00:14]} 33. Bf1 {[%clk 0:00:16]}  Bd5 {[%clk 0:00:15]} 34. b4 {[%clk 0:00:17]}  Rc8 {[%clk 0:00:15]} 35. Kf2 {[%clk 0:00:17]}  Be6 {[%clk 0:00:15]} 36. Rcd1 {[%clk 0:00:13]}  Rcd8 {[%clk 0:00:15]} 37. Rxd7 {[%clk 0:00:14]}  Rxd7 {[%clk 0:00:16]} 38. Bb5 {[%clk 0:00:13]}  Rd8 {[%clk 0:00:15]} 39. Bf1 {[%clk 0:00:14]}  Nd6 {[%clk 0:00:16]} 40. Ra1 {[%clk 0:00:13]}  a6 {[%clk 0:00:16]} 41. Re1 {[%clk 0:00:11]}  Bc4 {[%clk 0:00:16]} 42. Bxc4 {[%clk 0:00:09]}  Nxc4 {[%clk 0:00:17]} 43. h4 {[%clk 0:00:09]}  f6 {[%clk 0:00:15]} 44. g4 {[%clk 0:00:09]}  Kf7 {[%clk 0:00:16]} 45. Kg3 {[%clk 0:00:10]}  Rd4 {[%clk 0:00:14]} 46. Bxd4 {[%clk 0:00:10]} 1-0


[Site "https://www.chess.com"]

[Event "Titled Tuesday Blitz August 1 Late 2023"]
[White "Shimanov, Aleksandr"]
[Black "Pantev, Veselin"]
[WhiteFideId "4198603"]
[BlackFideId "2901390"]
[WhiteElo "2958"]
[BlackElo "2560"]
[Result "1-0"]
[Round "2"]
[TimeControl "180+1"]
[Date "2023.08.01"]
[WhiteClock "0:02:45"]
[BlackClock "0:02:03"]
[Board "13"]

1. d4 {[%clk 0:03:00]}  Nf6 {[%clk 0:02:58]} 2. c4 {[%clk 0:03:01]}  e6 {[%clk 0:02:58]} 3. Bf4 {[%clk 0:03:01]}  Bd6 {[%clk 0:02:57]} 4. Bxd6 {[%clk 0:03:00]}  cxd6 {[%clk 0:02:58]} 5. Nc3 {[%clk 0:03:01]}  b6 {[%clk 0:02:52]} 6. e4 {[%clk 0:02:59]}  Bb7 {[%clk 0:02:52]} 7. d5 {[%clk 0:02:59]}  O-O {[%clk 0:02:47]} 8. Nf3 {[%clk 0:02:57]}  a6 {[%clk 0:02:47]} 9. a4 {[%clk 0:02:57]}  b5 {[%clk 0:02:44]} 10. cxb5 {[%clk 0:02:56]}  axb5 {[%clk 0:02:42]} 11. Bxb5 {[%clk 0:02:57]}  Na6 {[%clk 0:02:39]} 12. O-O {[%clk 0:02:56]}  Nc5 {[%clk 0:02:38]} 13. Re1 {[%clk 0:02:56]}  Re8 {[%clk 0:02:33]} 14. b4 {[%clk 0:02:56]}  Na6 {[%clk 0:02:33]} 15. Bxa6 {[%clk 0:02:56]}  Bxa6 {[%clk 0:02:33]} 16. b5 {[%clk 0:02:57]}  Bb7 {[%clk 0:02:33]} 17. Qd4 {[%clk 0:02:57]}  Qa5 {[%clk 0:02:32]} 18. Nd2 {[%clk 0:02:53]}  Rac8 {[%clk 0:02:28]} 19. Rec1 {[%clk 0:02:49]}  h6 {[%clk 0:02:06]} 20. Nb3 {[%clk 0:02:48]}  Qa8 {[%clk 0:02:06]} 21. a5 {[%clk 0:02:47]}  exd5 {[%clk 0:02:06]} 22. a6 {[%clk 0:02:47]}  dxe4 {[%clk 0:02:07]} 23. axb7 {[%clk 0:02:47]}  Qxb7 {[%clk 0:02:07]} 24. b6 {[%clk 0:02:46]}  d5 {[%clk 0:02:06]} 25. Na5 {[%clk 0:02:46]}  Qb8 {[%clk 0:02:03]} 26. b7 {[%clk 0:02:45]} 1-0


[Site "https://www.chess.com"]

[Event "Titled Tuesday Blitz August 1 Late 2023"]
[White "Golubev, Mikhail"]
[Black "Sjugirov, Sanan"]
[WhiteFideId "14100983"]
[BlackFideId "4189302"]
[WhiteElo "2559"]
[BlackElo "2951"]
[Result "0-1"]
[Round "2"]
[TimeControl "180+1"]
[Date "2023.08.01"]
[WhiteClock "0:00:00"]
[BlackClock "0:01:06"]
[Board "14"]

1. e4 {[%clk 0:03:00]}  c6 {[%clk 0:02:57]} 2. Nf3 {[%clk 0:03:00]}  d5 {[%clk 0:02:58]} 3. Nc3 {[%clk 0:03:01]}  Bg4 {[%clk 0:02:57]} 4. h3 {[%clk 0:03:00]}  Bxf3 {[%clk 0:02:57]} 5. Qxf3 {[%clk 0:03:01]}  e6 {[%clk 0:02:57]} 6. d4 {[%clk 0:02:59]}  Nf6 {[%clk 0:02:56]} 7. Bd3 {[%clk 0:02:56]}  Bb4 {[%clk 0:02:48]} 8. e5 {[%clk 0:02:52]}  Nfd7 {[%clk 0:02:48]} 9. O-O {[%clk 0:02:50]}  c5 {[%clk 0:02:42]} 10. Qg3 {[%clk 0:02:30]}  g6 {[%clk 0:02:30]} 11. Bg5 {[%clk 0:02:06]}  Qb6 {[%clk 0:02:28]} 12. dxc5 {[%clk 0:01:53]}  Nxc5 {[%clk 0:02:23]} 13. a3 {[%clk 0:01:21]}  Bxc3 {[%clk 0:02:22]} 14. bxc3 {[%clk 0:01:22]}  Nbd7 {[%clk 0:02:17]} 15. Rab1 {[%clk 0:01:07]}  Qc7 {[%clk 0:02:17]} 16. Rfe1 {[%clk 0:00:55]}  a6 {[%clk 0:02:10]} 17. c4 {[%clk 0:00:48]}  Nxd3 {[%clk 0:01:55]} 18. cxd3 {[%clk 0:00:49]}  dxc4 {[%clk 0:01:55]} 19. dxc4 {[%clk 0:00:49]}  h6 {[%clk 0:01:55]} 20. Qh4 {[%clk 0:00:33]}  Rc8 {[%clk 0:01:22]} 21. Bxh6 {[%clk 0:00:25]}  Qxc4 {[%clk 0:01:19]} 22. Qxc4 {[%clk 0:00:18]}  Rxc4 {[%clk 0:01:20]} 23. Bg5 {[%clk 0:00:16]}  b5 {[%clk 0:01:18]} 24. Rbc1 {[%clk 0:00:14]}  Rh5 {[%clk 0:01:12]} 25. Rxc4 {[%clk 0:00:12]}  bxc4 {[%clk 0:01:13]} 26. h4 {[%clk 0:00:10]}  Nb6 {[%clk 0:01:10]} 27. Rb1 {[%clk 0:00:10]}  Nd5 {[%clk 0:01:09]} 28. Rb8+ {[%clk 0:00:10]}  Kd7 {[%clk 0:01:09]} 29. Rb7+ {[%clk 0:00:10]}  Kc6 {[%clk 0:01:09]} 30. Rxf7 {[%clk 0:00:10]}  c3 {[%clk 0:01:09]} 31. Rf8 {[%clk 0:00:05]}  c2 {[%clk 0:01:08]} 32. Rc8+ {[%clk 0:00:02]}  Nc7 {[%clk 0:01:09]} 33. Bc1 {[%clk 0:00:01]}  Rxe5 {[%clk 0:01:08]} 34. Kh2 {[%clk 0:00:02]}  Re1 {[%clk 0:01:07]} 35. Bd2 {[%clk 0:00:02]}  c1=Q {[%clk 0:01:05]} 36. Bxc1 {[%clk 0:00:02]}  Rxc1 {[%clk 0:01:06]} 37. Rg8 {[%clk 0:00:03]}  Rc4 {[%clk 0:01:05]} 38. Kh3 {[%clk 0:00:03]}  Rc3+ {[%clk 0:01:05]} 39. g3 {[%clk 0:00:02]}  Nd5 {[%clk 0:01:06]} 40. Rxg6 {[%clk 0:00:00]}  Nf4+ {[%clk 0:01:06]} 0-1


[Site "https://www.chess.com"]

[Event "Titled Tuesday Blitz August 1 Late 2023"]
[White "Geivondian, Arman"]
[Black "Demidov, Mikhail"]
[WhiteFideId "24102032"]
[BlackFideId "4197143"]
[WhiteElo "2554"]
[BlackElo "2938"]
[Result "0-1"]
[Round "2"]
[TimeControl "180+1"]
[Date "2023.08.01"]
[WhiteClock "0:01:17"]
[BlackClock "0:01:10"]
[Board "16"]

1. e4 {[%clk 0:02:59]}  g6 {[%clk 0:02:58]} 2. d4 {[%clk 0:02:58]}  Bg7 {[%clk 0:02:59]} 3. Nc3 {[%clk 0:02:59]}  a6 {[%clk 0:02:59]} 4. a4 {[%clk 0:02:59]}  d6 {[%clk 0:02:59]} 5. f4 {[%clk 0:02:58]}  Nf6 {[%clk 0:02:57]} 6. Nf3 {[%clk 0:02:58]}  c5 {[%clk 0:02:55]} 7. dxc5 {[%clk 0:02:57]}  Qa5 {[%clk 0:02:55]} 8. Bd2 {[%clk 0:02:52]}  Qxc5 {[%clk 0:02:53]} 9. Bd3 {[%clk 0:02:52]}  Bg4 {[%clk 0:02:48]} 10. h3 {[%clk 0:02:52]}  Bxf3 {[%clk 0:02:48]} 11. Qxf3 {[%clk 0:02:53]}  Nc6 {[%clk 0:02:47]} 12. Qf2 {[%clk 0:02:53]}  Nd7 {[%clk 0:02:46]} 13. Qxc5 {[%clk 0:02:52]}  Nxc5 {[%clk 0:02:46]} 14. Be3 {[%clk 0:02:47]}  Bd4 {[%clk 0:02:36]} 15. Kd2 {[%clk 0:02:39]}  Rc8 {[%clk 0:02:33]} 16. Rab1 {[%clk 0:02:32]}  Bxe3+ {[%clk 0:02:28]} 17. Kxe3 {[%clk 0:02:32]}  Nb4 {[%clk 0:02:28]} 18. Kd2 {[%clk 0:02:26]}  e6 {[%clk 0:02:26]} 19. g4 {[%clk 0:02:25]}  Ke7 {[%clk 0:02:25]} 20. Rhe1 {[%clk 0:02:25]}  e5 {[%clk 0:02:17]} 21. f5 {[%clk 0:02:24]}  g5 {[%clk 0:02:15]} 22. b3 {[%clk 0:02:13]}  h5 {[%clk 0:02:09]} 23. Bc4 {[%clk 0:02:09]}  hxg4 {[%clk 0:02:05]} 24. hxg4 {[%clk 0:02:10]}  Rh2+ {[%clk 0:02:05]} 25. Re2 {[%clk 0:02:10]}  Rxe2+ {[%clk 0:02:03]} 26. Kxe2 {[%clk 0:02:11]}  Rh8 {[%clk 0:02:00]} 27. Rf1 {[%clk 0:02:06]}  Nxc2 {[%clk 0:01:49]} 28. Nd5+ {[%clk 0:02:05]}  Kf8 {[%clk 0:01:46]} 29. Kd2 {[%clk 0:01:56]}  Rh2+ {[%clk 0:01:42]} 30. Kc1 {[%clk 0:01:53]}  Nd4 {[%clk 0:01:40]} 31. b4 {[%clk 0:01:38]}  Nxa4 {[%clk 0:01:38]} 32. f6 {[%clk 0:01:29]}  b5 {[%clk 0:01:10]} 33. Bd3 {[%clk 0:01:17]}  Nb2 {[%clk 0:01:10]} 0-1


[Site "https://www.chess.com"]

[Event "Titled Tuesday Blitz August 1 Late 2023"]
[White "Karwowski, Kacper"]
[Black "Terry, Renato"]
[WhiteFideId "1126032"]
[BlackFideId "3803457"]
[WhiteElo "2553"]
[BlackElo "2927"]
[Result "1/2-1/2"]
[Round "2"]
[TimeControl "180+1"]
[Date "2023.08.01"]
[WhiteClock "0:00:40"]
[BlackClock "0:00:44"]
[Board "18"]

1. e4 {[%clk 0:03:00]}  e6 {[%clk 0:03:00]} 2. d4 {[%clk 0:02:59]}  d5 {[%clk 0:03:00]} 3. Nd2 {[%clk 0:02:59]}  Be7 {[%clk 0:03:00]} 4. Ngf3 {[%clk 0:02:49]}  Nf6 {[%clk 0:03:00]} 5. Bd3 {[%clk 0:02:47]}  c5 {[%clk 0:02:59]} 6. dxc5 {[%clk 0:02:44]}  dxe4 {[%clk 0:03:00]} 7. Nxe4 {[%clk 0:02:44]}  Nxe4 {[%clk 0:03:00]} 8. Bxe4 {[%clk 0:02:45]}  Qxd1+ {[%clk 0:03:01]} 9. Kxd1 {[%clk 0:02:46]}  Bxc5 {[%clk 0:03:01]} 10. Ke2 {[%clk 0:02:46]}  Nd7 {[%clk 0:03:02]} 11. Be3 {[%clk 0:02:44]}  Bxe3 {[%clk 0:03:02]} 12. fxe3 {[%clk 0:02:45]}  Nc5 {[%clk 0:03:03]} 13. Bd3 {[%clk 0:02:44]}  b6 {[%clk 0:03:02]} 14. b4 {[%clk 0:02:42]}  Nxd3 {[%clk 0:02:59]} 15. cxd3 {[%clk 0:02:43]}  Bb7 {[%clk 0:02:56]} 16. Rac1 {[%clk 0:02:42]}  Bxf3+ {[%clk 0:02:48]} 17. gxf3 {[%clk 0:02:36]}  Kd7 {[%clk 0:02:49]} 18. d4 {[%clk 0:02:29]}  Rac8 {[%clk 0:02:42]} 19. Kd3 {[%clk 0:02:28]}  g5 {[%clk 0:02:29]} 20. a4 {[%clk 0:02:07]}  h5 {[%clk 0:02:23]} 21. e4 {[%clk 0:01:59]}  g4 {[%clk 0:02:14]} 22. Rxc8 {[%clk 0:01:35]}  Kxc8 {[%clk 0:02:14]} 23. fxg4 {[%clk 0:01:32]}  hxg4 {[%clk 0:02:15]} 24. Rf1 {[%clk 0:01:32]}  Rh7 {[%clk 0:02:09]} 25. Rf4 {[%clk 0:01:30]}  Kd7 {[%clk 0:02:08]} 26. b5 {[%clk 0:01:22]}  Ke7 {[%clk 0:02:02]} 27. Rxg4 {[%clk 0:01:10]}  Rxh2 {[%clk 0:02:02]} 28. Kc4 {[%clk 0:01:09]}  Rc2+ {[%clk 0:01:53]} 29. Kb3 {[%clk 0:01:07]}  Rc8 {[%clk 0:01:40]} 30. e5 {[%clk 0:01:05]}  Kf8 {[%clk 0:01:33]} 31. Kb4 {[%clk 0:01:00]}  Rc1 {[%clk 0:01:33]} 32. Kb3 {[%clk 0:00:59]}  Rc7 {[%clk 0:01:30]} 33. Kb4 {[%clk 0:00:58]}  Rc1 {[%clk 0:01:24]} 34. Kb3 {[%clk 0:00:58]}  Rb1+ {[%clk 0:01:22]} 35. Kc4 {[%clk 0:00:58]}  Rf1 {[%clk 0:01:16]} 36. Kb4 {[%clk 0:00:56]}  Rf2 {[%clk 0:01:15]} 37. Kb3 {[%clk 0:00:56]}  Rf3+ {[%clk 0:01:15]} 38. Kb4 {[%clk 0:00:56]}  Rh3 {[%clk 0:01:13]} 39. Kc4 {[%clk 0:00:56]}  Rh8 {[%clk 0:01:10]} 40. Kb4 {[%clk 0:00:54]}  Ke7 {[%clk 0:01:10]} 41. Kc4 {[%clk 0:00:54]}  Rc8+ {[%clk 0:01:10]} 42. Kb4 {[%clk 0:00:54]}  Rf8 {[%clk 0:01:11]} 43. Kc4 {[%clk 0:00:52]}  Rh8 {[%clk 0:01:06]} 44. Kb4 {[%clk 0:00:51]}  Rh7 {[%clk 0:01:04]} 45. Kb3 {[%clk 0:00:50]}  f5 {[%clk 0:01:03]} 46. exf6+ {[%clk 0:00:50]}  Kxf6 {[%clk 0:01:04]} 47. Re4 {[%clk 0:00:48]}  Rc7 {[%clk 0:01:00]} 48. Re1 {[%clk 0:00:45]}  Rd7 {[%clk 0:00:58]} 49. Re4 {[%clk 0:00:45]}  Rd8 {[%clk 0:00:56]} 50. Kc4 {[%clk 0:00:44]}  Rd6 {[%clk 0:00:56]} 51. Rf4+ {[%clk 0:00:43]}  Ke7 {[%clk 0:00:55]} 52. Rh4 {[%clk 0:00:43]}  Rd7 {[%clk 0:00:51]} 53. Rh7+ {[%clk 0:00:40]}  Kd6 {[%clk 0:00:51]} 54. Rxd7+ {[%clk 0:00:38]}  Kxd7 {[%clk 0:00:52]} 55. d5 {[%clk 0:00:39]}  Kd6 {[%clk 0:00:39]} 56. dxe6 {[%clk 0:00:38]}  Kxe6 {[%clk 0:00:40]} 57. Kb4 {[%clk 0:00:38]}  Kd5 {[%clk 0:00:40]} 58. a5 {[%clk 0:00:38]}  Kd4 {[%clk 0:00:40]} 59. axb6 {[%clk 0:00:38]}  axb6 {[%clk 0:00:41]} 60. Ka4 {[%clk 0:00:39]}  Kc5 {[%clk 0:00:41]} 61. Ka3 {[%clk 0:00:39]}  Kc4 {[%clk 0:00:42]} 62. Ka4 {[%clk 0:00:39]}  Kc5 {[%clk 0:00:41]} 63. Ka3 {[%clk 0:00:40]}  Kd5 {[%clk 0:00:41]} 64. Kb4 {[%clk 0:00:39]}  Kd4 {[%clk 0:00:41]} 65. Ka4 {[%clk 0:00:39]}  Kc3 {[%clk 0:00:42]} 66. Ka3 {[%clk 0:00:39]}  Kc4 {[%clk 0:00:43]} 67. Ka4 {[%clk 0:00:40]}  Kc5 {[%clk 0:00:44]} 1/2-1/2


[Site "https://www.chess.com"]

[Event "Titled Tuesday Blitz August 1 Late 2023"]
[White "Zakhartsov, Vladimir"]
[Black "Ambartsumova, Karina"]
[WhiteFideId "4145097"]
[BlackFideId "4166299"]
[WhiteElo "2922"]
[BlackElo "2552"]
[Result "1-0"]
[Round "2"]
[TimeControl "180+1"]
[Date "2023.08.01"]
[WhiteClock "0:00:26"]
[BlackClock "0:00:00"]
[Board "19"]

1. d4 {[%clk 0:03:00]}  d6 {[%clk 0:02:58]} 2. e4 {[%clk 0:03:00]}  Nf6 {[%clk 0:02:59]} 3. Nc3 {[%clk 0:03:00]}  e5 {[%clk 0:02:59]} 4. Nf3 {[%clk 0:02:59]}  Nbd7 {[%clk 0:02:59]} 5. Bc4 {[%clk 0:02:59]}  Be7 {[%clk 0:03:00]} 6. a4 {[%clk 0:02:59]}  O-O {[%clk 0:03:00]} 7. O-O {[%clk 0:02:57]}  a6 {[%clk 0:03:00]} 8. a5 {[%clk 0:02:57]}  b5 {[%clk 0:02:49]} 9. axb6 {[%clk 0:02:55]}  cxb6 {[%clk 0:02:49]} 10. Re1 {[%clk 0:02:52]}  Bb7 {[%clk 0:02:49]} 11. d5 {[%clk 0:02:36]}  b5 {[%clk 0:02:47]} 12. Bd3 {[%clk 0:02:33]}  Nb6 {[%clk 0:02:41]} 13. Ne2 {[%clk 0:02:30]}  g6 {[%clk 0:02:40]} 14. Ng3 {[%clk 0:02:29]}  Ne8 {[%clk 0:02:40]} 15. Bd2 {[%clk 0:02:24]}  Nd7 {[%clk 0:02:37]} 16. Ba5 {[%clk 0:02:23]}  Qc8 {[%clk 0:02:37]} 17. b4 {[%clk 0:02:17]}  Bd8 {[%clk 0:02:31]} 18. Qd2 {[%clk 0:02:13]}  Ng7 {[%clk 0:02:27]} 19. Rec1 {[%clk 0:02:07]}  Bxa5 {[%clk 0:02:25]} 20. Rxa5 {[%clk 0:02:06]}  Nb6 {[%clk 0:02:25]} 21. Qh6 {[%clk 0:02:02]}  f6 {[%clk 0:02:18]} 22. Qe3 {[%clk 0:01:46]}  Qc7 {[%clk 0:02:17]} 23. Nd2 {[%clk 0:01:45]}  f5 {[%clk 0:02:06]} 24. Qh6 {[%clk 0:01:23]}  f4 {[%clk 0:01:17]} 25. Ne2 {[%clk 0:01:23]}  Rac8 {[%clk 0:01:02]} 26. f3 {[%clk 0:01:20]}  Nc4 {[%clk 0:00:48]} 27. Bxc4 {[%clk 0:01:16]}  bxc4 {[%clk 0:00:48]} 28. c3 {[%clk 0:01:15]}  Qb6+ {[%clk 0:00:48]} 29. Kf1 {[%clk 0:01:13]}  Qe3 {[%clk 0:00:48]} 30. Ra2 {[%clk 0:01:10]}  Nh5 {[%clk 0:00:43]} 31. g4 {[%clk 0:00:58]}  Nf6 {[%clk 0:00:30]} 32. Qh4 {[%clk 0:00:56]}  Nxe4 {[%clk 0:00:24]} 33. fxe4 {[%clk 0:00:35]}  f3 {[%clk 0:00:22]} 34. Ng1 {[%clk 0:00:34]}  Qd3+ {[%clk 0:00:12]} 35. Kf2 {[%clk 0:00:33]}  Bxd5 {[%clk 0:00:08]} 36. exd5 {[%clk 0:00:30]}  e4 {[%clk 0:00:08]} 37. Qg5 {[%clk 0:00:29]}  Rce8 {[%clk 0:00:00]} 38. Qe3 {[%clk 0:00:26]} 1-0


[Site "https://www.chess.com"]

[Event "Titled Tuesday Blitz August 1 Late 2023"]
[White "Grigorjev, Iljya"]
[Black "Leebit02"]
[WhiteFideId "24159565"]
[WhiteElo "2901"]
[BlackElo "2550"]
[Result "1-0"]
[Round "2"]
[TimeControl "180+1"]
[Date "2023.08.01"]
[WhiteClock "0:00:19"]
[BlackClock "0:00:12"]
[Board "20"]

1. d4 {[%clk 0:03:00]}  Nf6 {[%clk 0:02:58]} 2. c4 {[%clk 0:03:01]}  e6 {[%clk 0:02:58]} 3. Nc3 {[%clk 0:03:01]}  Bb4 {[%clk 0:02:55]} 4. e3 {[%clk 0:03:01]}  O-O {[%clk 0:02:51]} 5. Bd3 {[%clk 0:03:01]}  Re8 {[%clk 0:02:49]} 6. Ne2 {[%clk 0:03:00]}  d5 {[%clk 0:02:49]} 7. a3 {[%clk 0:02:57]}  Bf8 {[%clk 0:02:47]} 8. Qc2 {[%clk 0:02:53]}  dxc4 {[%clk 0:02:37]} 9. Bxc4 {[%clk 0:02:54]}  a6 {[%clk 0:02:38]} 10. O-O {[%clk 0:02:48]}  c5 {[%clk 0:02:31]} 11. Rd1 {[%clk 0:02:40]}  Qc7 {[%clk 0:02:29]} 12. dxc5 {[%clk 0:02:34]}  Bxc5 {[%clk 0:02:20]} 13. Ba2 {[%clk 0:02:00]}  Bd6 {[%clk 0:02:13]} 14. h3 {[%clk 0:01:56]}  b5 {[%clk 0:02:08]} 15. b4 {[%clk 0:01:47]}  Bb7 {[%clk 0:02:07]} 16. Bb2 {[%clk 0:01:48]}  Nbd7 {[%clk 0:02:04]} 17. Rac1 {[%clk 0:01:47]}  Qc6 {[%clk 0:01:47]} 18. Nd5 {[%clk 0:01:41]}  Qxc2 {[%clk 0:01:26]} 19. Nxf6+ {[%clk 0:01:41]}  Nxf6 {[%clk 0:01:25]} 20. Rxc2 {[%clk 0:01:42]}  Bf8 {[%clk 0:01:14]} 21. Rc7 {[%clk 0:01:27]}  Bd5 {[%clk 0:01:11]} 22. Bxd5 {[%clk 0:01:19]}  Nxd5 {[%clk 0:01:10]} 23. Rd7 {[%clk 0:01:20]}  Nb6 {[%clk 0:01:08]} 24. Rb7 {[%clk 0:01:14]}  Nc4 {[%clk 0:01:08]} 25. Bc3 {[%clk 0:01:11]}  Re7 {[%clk 0:00:51]} 26. Rxe7 {[%clk 0:01:09]}  Bxe7 {[%clk 0:00:51]} 27. Nd4 {[%clk 0:01:10]}  Bf6 {[%clk 0:00:48]} 28. Ra1 {[%clk 0:01:02]}  Kf8 {[%clk 0:00:30]} 29. a4 {[%clk 0:01:01]}  bxa4 {[%clk 0:00:29]} 30. Rxa4 {[%clk 0:01:02]}  Nb6 {[%clk 0:00:30]} 31. Ra5 {[%clk 0:00:45]}  Nd5 {[%clk 0:00:30]} 32. Bd2 {[%clk 0:00:46]}  Bxd4 {[%clk 0:00:30]} 33. exd4 {[%clk 0:00:47]}  Ke7 {[%clk 0:00:30]} 34. b5 {[%clk 0:00:47]}  Nc7 {[%clk 0:00:27]} 35. b6 {[%clk 0:00:44]}  Nd5 {[%clk 0:00:27]} 36. Rxd5 {[%clk 0:00:40]}  exd5 {[%clk 0:00:25]} 37. Bf4 {[%clk 0:00:41]}  Kd7 {[%clk 0:00:16]} 38. b7 {[%clk 0:00:41]}  Rd8 {[%clk 0:00:15]} 39. b8=Q {[%clk 0:00:41]}  Rxb8 {[%clk 0:00:16]} 40. Bxb8 {[%clk 0:00:42]}  Kc6 {[%clk 0:00:16]} 41. Kf1 {[%clk 0:00:41]}  Kb5 {[%clk 0:00:16]} 42. Ke2 {[%clk 0:00:38]}  Kc4 {[%clk 0:00:17]} 43. Ba7 {[%clk 0:00:32]}  a5 {[%clk 0:00:16]} 44. Kd2 {[%clk 0:00:32]}  Kb3 {[%clk 0:00:15]} 45. Bc5 {[%clk 0:00:28]}  Kb2 {[%clk 0:00:13]} 46. Ke3 {[%clk 0:00:18]}  a4 {[%clk 0:00:14]} 47. Kf4 {[%clk 0:00:19]}  a3 {[%clk 0:00:13]} 48. Bxa3+ {[%clk 0:00:18]}  Kxa3 {[%clk 0:00:12]} 49. Ke5 {[%clk 0:00:19]} 1-0


[Site "https://www.chess.com"]

[Event "Titled Tuesday Blitz August 1 Late 2023"]
[White "Santos Flores, Alberto"]
[Black "Zhigalko, Sergei"]
[WhiteFideId "3601234"]
[BlackFideId "13502956"]
[WhiteElo "2549"]
[BlackElo "2897"]
[Result "0-1"]
[Round "2"]
[TimeControl "180+1"]
[Date "2023.08.01"]
[WhiteClock "0:00:00"]
[BlackClock "0:00:07"]
[Board "21"]

1. e4 {[%clk 0:03:00]}  c5 {[%clk 0:02:59]} 2. Nf3 {[%clk 0:03:01]}  Nc6 {[%clk 0:02:59]} 3. Nc3 {[%clk 0:03:00]}  Nf6 {[%clk 0:02:59]} 4. d4 {[%clk 0:03:00]}  cxd4 {[%clk 0:03:00]} 5. Nxd4 {[%clk 0:03:00]}  e5 {[%clk 0:03:01]} 6. Ndb5 {[%clk 0:03:01]}  d6 {[%clk 0:03:01]} 7. Bg5 {[%clk 0:03:01]}  a6 {[%clk 0:03:01]} 8. Na3 {[%clk 0:02:59]}  b5 {[%clk 0:03:02]} 9. Bxf6 {[%clk 0:02:58]}  gxf6 {[%clk 0:03:02]} 10. Nd5 {[%clk 0:02:59]}  Bg7 {[%clk 0:02:56]} 11. c3 {[%clk 0:02:59]}  f5 {[%clk 0:02:56]} 12. exf5 {[%clk 0:03:00]}  Bxf5 {[%clk 0:02:57]} 13. Nc2 {[%clk 0:03:01]}  Be6 {[%clk 0:02:57]} 14. Nce3 {[%clk 0:03:01]}  Ne7 {[%clk 0:02:50]} 15. g3 {[%clk 0:03:00]}  Nxd5 {[%clk 0:02:50]} 16. Nxd5 {[%clk 0:03:01]}  O-O {[%clk 0:02:51]} 17. Bg2 {[%clk 0:03:01]}  a5 {[%clk 0:02:51]} 18. O-O {[%clk 0:03:00]}  Rb8 {[%clk 0:02:52]} 19. Kh1 {[%clk 0:02:47]}  Kh8 {[%clk 0:02:48]} 20. f4 {[%clk 0:02:47]}  f5 {[%clk 0:02:48]} 21. a3 {[%clk 0:02:34]}  Qd7 {[%clk 0:02:42]} 22. Qd2 {[%clk 0:02:28]}  e4 {[%clk 0:02:28]} 23. g4 {[%clk 0:02:18]}  fxg4 {[%clk 0:02:10]} 24. Bxe4 {[%clk 0:02:18]}  Rbe8 {[%clk 0:02:01]} 25. Rae1 {[%clk 0:02:14]}  Bf5 {[%clk 0:01:53]} 26. Bg2 {[%clk 0:02:02]}  Bg6 {[%clk 0:01:21]} 27. Rxe8 {[%clk 0:01:57]}  Rxe8 {[%clk 0:01:17]} 28. Re1 {[%clk 0:01:56]}  h5 {[%clk 0:01:00]} 29. Rxe8+ {[%clk 0:01:11]}  Qxe8 {[%clk 0:01:00]} 30. h3 {[%clk 0:01:11]}  g3 {[%clk 0:00:35]} 31. Qe3 {[%clk 0:01:05]}  Qxe3 {[%clk 0:00:26]} 32. Nxe3 {[%clk 0:01:06]}  h4 {[%clk 0:00:27]} 33. Bc6 {[%clk 0:00:56]}  Bh6 {[%clk 0:00:19]} 34. Ng2 {[%clk 0:00:56]}  Bd3 {[%clk 0:00:12]} 35. a4 {[%clk 0:00:24]}  b4 {[%clk 0:00:04]} 36. cxb4 {[%clk 0:00:23]}  axb4 {[%clk 0:00:05]} 37. Bb7 {[%clk 0:00:16]}  b3 {[%clk 0:00:03]} 38. a5 {[%clk 0:00:14]}  Bg7 {[%clk 0:00:03]} 39. a6 {[%clk 0:00:14]}  Bd4 {[%clk 0:00:03]} 40. Nxh4 {[%clk 0:00:14]}  Kg7 {[%clk 0:00:02]} 41. Kg2 {[%clk 0:00:14]}  Kf6 {[%clk 0:00:02]} 42. Kxg3 {[%clk 0:00:14]}  Ke6 {[%clk 0:00:02]} 43. Nf3 {[%clk 0:00:15]}  Bc5 {[%clk 0:00:01]} 44. Nd2 {[%clk 0:00:14]}  Bc2 {[%clk 0:00:01]} 45. h4 {[%clk 0:00:13]}  Kd7 {[%clk 0:00:02]} 46. Kg4 {[%clk 0:00:12]}  Kc7 {[%clk 0:00:02]} 47. f5 {[%clk 0:00:11]}  Bd4 {[%clk 0:00:03]} 48. h5 {[%clk 0:00:10]}  Bxb2 {[%clk 0:00:03]} 49. h6 {[%clk 0:00:09]}  Bf6 {[%clk 0:00:02]} 50. Nxb3 {[%clk 0:00:06]}  Bxb3 {[%clk 0:00:03]} 51. Kh5 {[%clk 0:00:07]}  Bf7+ {[%clk 0:00:02]} 52. Kg4 {[%clk 0:00:07]}  Kb6 {[%clk 0:00:03]} 53. Kf4 {[%clk 0:00:07]}  Kc7 {[%clk 0:00:03]} 54. Kg4 {[%clk 0:00:07]}  Kb6 {[%clk 0:00:03]} 55. Kf4 {[%clk 0:00:07]}  d5 {[%clk 0:00:03]} 56. h7 {[%clk 0:00:05]}  d4 {[%clk 0:00:03]} 57. Ke4 {[%clk 0:00:06]}  Ka7 {[%clk 0:00:03]} 58. Kd3 {[%clk 0:00:05]}  Kb6 {[%clk 0:00:03]} 59. Ke4 {[%clk 0:00:06]}  Bc4 {[%clk 0:00:04]} 60. Kf3 {[%clk 0:00:04]}  Bxa6 {[%clk 0:00:04]} 61. Bd5 {[%clk 0:00:02]}  Bb7 {[%clk 0:00:04]} 62. Bxb7 {[%clk 0:00:01]}  Kxb7 {[%clk 0:00:05]} 63. Ke4 {[%clk 0:00:02]}  Kc6 {[%clk 0:00:06]} 64. Kf4 {[%clk 0:00:02]}  Kd5 {[%clk 0:00:06]} 65. Kg4 {[%clk 0:00:03]}  d3 {[%clk 0:00:06]} 66. Kh5 {[%clk 0:00:04]}  d2 {[%clk 0:00:06]} 67. Kg6 {[%clk 0:00:00]}  Ke5 {[%clk 0:00:07]} 0-1


[Site "https://www.chess.com"]